bitfinex/quotes_BTCUSD_20250414
["timestamp","ask_amount","ask_price","bid_price","bid_amount"]
[1744643626184,0.248673,84448.0,84445.0,0.236838]
[1744643626386,0.0001381,84452.0,84449.0,0.236828]
[1744643626636,0.0001381,84452.0,84440.0,0.0486]
[1744643626827,0.0001381,84452.0,84442.0,0.011842]
[1744643626828,0.011841,84446.0,84442.0,0.011842]
[1744643627004,0.011841,84446.0,84442.0,0.24869]
[1744643627182,0.011841,84447.0,84443.0,0.248687]
[1744643627728,0.248678,84447.0,84444.0,0.248683]
[1744643628224,0.236829,84449.0,84447.0,0.236834]
[1744643628454,0.238833,84448.0,84446.0,0.011841]
[1744643628607,0.236833,84448.0,84446.0,0.011841]
[1744643628804,0.24867,84449.0,84446.0,0.011841]
[1744643629011,0.002,84447.0,84445.0,0.24868]
[1744643629212,0.248673,84448.0,84445.0,0.24868]
[1744643629412,0.011841,84450.0,84446.0,0.25697534]
[1744643629610,0.002,84448.0,84447.0,0.236834]
[1744643629791,0.41644893,84451.0,84450.0,0.236826]
[1744643630992,0.248616,84468.0,84451.0,0.236823]
[1744643631125,0.011839,84465.0,84451.0,0.236823]
[1744643631331,0.248624,84465.0,84451.0,0.236823]
[1744643631597,0.011839,84463.0,84451.0,0.236823]
[1744643631728,0.248616,84468.0,84451.0,0.236823]
[1744643631929,0.011837,84474.0,84451.0,0.236823]
[1744643632129,0.41644893,84485.0,84484.0,0.236731]
[1744643632329,0.44926304,84485.0,84484.0,0.236731]
[1744643632530,0.01161657,84488.0,84487.0,0.236722]
[1744643632734,0.01161657,84488.0,84487.0,0.403402]
[1744643632958,0.01161657,84488.0,84487.0,0.52424354]
[1744643633165,0.05469164,84519.0,84496.0,0.286297]
[1744643633166,0.41644893,84517.0,84496.0,0.286297]
[1744643633360,0.41644893,84517.0,84496.0,0.40713854]
[1744643633533,0.05469164,84519.0,84496.0,0.40713854]
[1744643633534,0.05469164,84519.0,84518.0,0.236635]
[1744643633732,6.4e-07,84519.0,84518.0,0.62165654]
[1744643634206,6.4e-07,84519.0,84518.0,0.27248355]
[1744643634594,0.236635,84518.0,84517.0,0.16668]
[1744643634741,6.4e-07,84519.0,84517.0,0.403316]
[1744643635296,0.00100064,84519.0,84518.0,0.001]
[1744643635702,6.4e-07,84519.0,84517.0,0.403316]
[1744643636002,6.4e-07,84519.0,84517.0,0.16768]
[1744643636003,0.23763464,84519.0,84517.0,0.16768]
[1744643636202,0.00100064,84519.0,84517.0,0.16668]
[1744643636376,0.00100064,84519.0,84517.0,0.403317]
[1744643636377,0.00200064,84519.0,84517.0,0.403317]
[1744643636779,0.002,84519.0,84517.0,0.403317]
[1744643637103,0.002,84519.0,84518.0,0.00236619]
[1744643637503,0.002,84519.0,84517.0,0.236637]
[1744643637706,0.011831,84522.0,84516.0,0.178512]
[1744643637920,0.236636,84518.0,84516.0,0.16668]
[1744643638092,0.248477,84515.0,84510.0,0.011832]
[1744643638289,0.011832,84515.0,84513.0,0.16644]
[1744643638492,0.236643,84516.0,84513.0,0.16644]
[1744643638899,0.236643,84516.0,84513.0,0.403088]
[1744643639097,0.011831,84517.0,84513.0,0.178272]
[1744643639426,0.236666,84507.0,84493.0,0.011835]
[1744643639717,0.248515,84502.0,84497.0,0.248528]
[1744643639915,0.011834,84502.0,84496.0,0.00046152]
[1744643640113,0.011834,84502.0,84498.0,0.011834]
[1744643640312,0.011833,84503.0,84497.0,0.011834]
[1744643640545,0.011833,84505.0,84501.0,0.248516]
[1744643640546,0.248509,84504.0,84501.0,0.248516]
[1744643640753,0.23668,84503.0,84500.0,0.011834]
[1744643640875,0.248509,84504.0,84500.0,0.011834]
[1744643641079,0.236679,84503.0,84500.0,0.011834]
[1744643641274,0.001,84502.0,84500.0,0.011834]
[1744643641479,0.001,84502.0,84500.0,0.248518]
[1744643641744,0.248508,84504.0,84500.0,0.248519]
[1744643641946,0.011834,84502.0,84497.0,0.248526]
[1744643642170,0.001,84504.0,84503.0,0.236677]
[1744643642348,0.001,84504.0,84500.0,0.249518]
[1744643642547,0.001,84502.0,84501.0,0.248515]
[1744643642871,0.001,84502.0,84501.0,0.36935654]
[1744643643216,0.001,84502.0,84500.0,0.002]
[1744643643420,0.237681,84502.0,84500.0,0.002]
[1744643643621,0.41644893,84501.0,84500.0,0.002]
[1744643643816,0.011833,84506.0,84500.0,0.002]
[1744643643817,0.00907024,84517.0,84514.0,0.011832]
[1744643644017,0.011829,84537.0,84526.0,0.01183]
[1744643644320,0.011831,84523.0,84515.0,0.0936]
[1744643644518,0.12084154,84528.0,84527.0,0.23661]
[1744643644760,0.0008474,84530.0,84527.0,0.23661]
[1744643645164,0.0008474,84530.0,84527.0,0.236609]
[1744643645364,0.004,84529.0,84527.0,0.236609]
[1744643645574,0.00213869,84529.0,84527.0,0.236609]
[1744643645971,0.00313869,84529.0,84527.0,0.236609]
[1744643646390,0.00313869,84529.0,84528.0,0.00236595]
[1744643646687,0.00313869,84529.0,84528.0,0.09666595]
[1744643647359,0.00213869,84529.0,84528.0,0.09666595]
[1744643647556,0.0008474,84530.0,84528.0,0.09666595]
[1744643647557,9e-08,84530.0,84529.0,0.236605]
[1744643647798,9e-08,84530.0,84529.0,0.35744654]
[1744643648348,0.0008446,84552.0,84547.0,0.236554]
[1744643648545,0.0008446,84552.0,84547.0,0.52379554]
[1744643648749,0.0008446,84552.0,84551.0,0.236543]
[1744643648947,0.0008446,84552.0,84551.0,0.35738454]
[1744643650688,6e-07,84552.0,84551.0,0.35738454]
[1744643651169,0.0030006,84552.0,84551.0,0.35838454]
[1744643651372,6e-07,84552.0,84551.0,0.36630829]
[1744643651575,6e-07,84552.0,84551.0,0.36930829]
[1744643651749,0.0010006,84552.0,84551.0,0.53174454]
[1744643651952,0.0010006,84552.0,84551.0,0.008]
[1744643652152,0.011828,84544.0,84538.0,0.16636]
[1744643652357,0.011828,84541.0,84538.0,0.16636]
[1744643652523,0.242391,84544.0,84540.0,0.236573]
[1744643652725,0.005828,84544.0,84541.0,0.248398]
[1744643653049,0.011828,84542.0,84539.0,0.011828]
[1744643653255,0.236559,84546.0,84542.0,0.248395]
[1744643653462,0.236574,84540.0,84538.0,0.16636]
[1744643653633,0.236573,84541.0,84538.0,0.16636]
[1744643653831,0.011828,84542.0,84538.0,0.16936]
[1744643654088,0.011828,84541.0,84538.0,0.181188]
[1744643654384,0.236575,84540.0,84538.0,0.16636]
[1744643654631,0.01183,84529.0,84519.0,0.011831]
[1744643654772,0.34936728,84551.0,84506.0,0.4187]
[1744643654773,0.236646,84515.0,84513.0,0.0466]
[1744643654976,0.236652,84512.0,84511.0,0.00894947]
[1744643655183,0.002,84542.0,84517.0,0.011831]
[1744643655401,0.01183,84529.0,84524.0,0.248448]
[1744643655546,0.011829,84537.0,84531.0,0.011829]
[1744643655750,0.001,84529.0,84527.0,0.01183]
[1744643655951,0.001,84529.0,84527.0,0.248438]
[1744643657057,0.236603,84530.0,84527.0,0.248438]
[1744643657283,0.001,84529.0,84527.0,0.01183]
[1744643657452,0.011832,84516.0,84511.0,0.011832]
[1744643657652,0.011832,84516.0,84510.0,0.00046152]
[1744643657653,0.236653,84512.0,84510.0,0.00046152]
[1744643658068,0.011832,84515.0,84511.0,0.236653]
[1744643658346,0.248477,84515.0,84511.0,0.236653]
[1744643658544,0.236653,84513.0,84510.0,0.00046152]
[1744643658727,0.011832,84513.0,84511.0,0.001]
[1744643658906,0.011832,84514.0,84511.0,0.237654]
[1744643659358,0.24848,84514.0,84511.0,0.001]
[1744643659719,0.236652,84513.0,84511.0,0.001]
[1744643659924,0.011832,84516.0,84513.0,0.236649]
[1744643660124,0.011832,84516.0,84512.0,0.011832]
[1744643660525,0.248474,84516.0,84512.0,0.248484]
[1744643660657,0.011832,84516.0,84513.0,0.011832]
[1744643660856,0.249482,84513.0,84510.0,0.01229352]
[1744643661068,0.248482,84513.0,84511.0,0.001]
[1744643661266,0.236654,84512.0,84511.0,0.001]
[1744643661469,0.236654,84512.0,84510.0,0.00046152]
[1744643662712,0.47020882,84511.0,84510.0,0.00046152]
[1744643662856,0.48474967,84511.0,84510.0,0.00046152]
[1744643663283,0.48474967,84511.0,84510.0,0.00146152]
[1744643663696,0.48474967,84511.0,84462.0,0.059339]
[1744643663697,0.236764,84472.0,84462.0,0.059339]
[1744643663913,0.236764,84472.0,84462.0,0.0475]
[1744643664088,0.236764,84472.0,84457.0,0.01184]
[1744643664338,0.236764,84472.0,84458.0,0.01184]
[1744643664546,0.7069723,84472.0,84452.0,0.1664]
[1744643664892,0.70743422,84472.0,84471.0,0.003]
[1744643666197,0.70743422,84472.0,84471.0,0.002]
[1744643666400,0.71043422,84472.0,84471.0,0.002]
[1744643666807,0.71543422,84472.0,84471.0,0.002]
[1744643667023,0.71243422,84472.0,84471.0,0.002]
[1744643667225,0.73097507,84472.0,84471.0,0.002]
[1744643667424,0.72597507,84472.0,84471.0,1e-06]
[1744643669197,0.73397507,84472.0,84471.0,1e-06]
[1744643669769,0.72997507,84472.0,84471.0,1e-06]
[1744643669970,0.73597507,84472.0,84471.0,1e-06]
[1744643670485,0.72197507,84472.0,84471.0,1e-06]
[1744643670613,0.73297507,84472.0,84471.0,1e-06]
[1744643671220,0.73897507,84472.0,84471.0,1e-06]
[1744643671418,0.72443422,84472.0,84471.0,1e-06]
[1744643671643,0.48767022,84472.0,84471.0,0.236768]
[1744643671855,0.72443422,84472.0,84471.0,1e-06]
[1744643672057,0.73897507,84472.0,84471.0,1e-06]
[1744643672676,0.73297507,84472.0,84471.0,1e-06]
[1744643672921,0.25131685,84468.0,84466.0,0.0004219]
[1744643673118,0.13538239,84467.0,84466.0,9e-07]
[1744643674095,0.47538239,84467.0,84466.0,9e-07]
[1744643674319,0.236823,84451.0,84450.0,0.05]
[1744643674516,0.88789115,84451.0,84450.0,0.05]
[1744643676182,0.89389115,84451.0,84450.0,0.05]
[1744643676543,0.88789115,84451.0,84450.0,0.05]
[1744643676895,0.89589115,84451.0,84450.0,0.05]
[1744643677011,0.89189115,84451.0,84450.0,0.05]
[1744643677409,0.8853503,84451.0,84450.0,0.05]
[1744643678043,0.52768576,84451.0,84450.0,0.05]
[1744643678872,0.36136576,84451.0,84450.0,0.05]
[1744643679681,0.34936576,84451.0,84450.0,0.05]
[1744643680104,0.35836576,84451.0,84450.0,0.0955]
[1744643680468,0.35536576,84451.0,84450.0,0.0955]
[1744643680680,0.34936576,84451.0,84450.0,0.0955]
[1744643680877,0.35036576,84451.0,84450.0,0.0955]
[1744643681216,0.004,84451.0,84450.0,0.0955]
[1744643681411,0.001,84451.0,84450.0,0.09786791]
[1744643681612,0.001,84451.0,84450.0,0.21634154]
[1744643681814,0.001,84451.0,84450.0,0.0955]
[1744643682357,0.248631,84463.0,84459.0,0.01184]
[1744643682477,0.011839,84464.0,84460.0,0.011839]
[1744643682683,0.011837,84476.0,84471.0,0.236767]
[1744643682886,0.011837,84474.0,84470.0,0.23677]
[1744643683113,0.011837,84478.0,84470.0,0.23677]
[1744643683312,0.011838,84467.0,84459.0,0.01184]
[1744643683519,0.011839,84464.0,84460.0,0.011839]
[1744643683785,0.248612,84469.0,84465.0,0.011839]
[1744643684115,0.24906592,84472.0,84467.0,0.236777]
[1744643684249,0.011838,84470.0,84467.0,0.248615]
[1744643684846,0.011839,84463.0,84456.0,0.236809]
[1744643685050,0.011839,84465.0,84458.0,0.248643]
[1744643685258,0.01184,84456.0,84451.0,0.011841]
[1744643685483,0.011839,84462.0,84458.0,0.01184]
[1744643685696,0.003,84469.0,84461.0,0.011839]
[1744643685896,0.003,84469.0,84458.0,0.248643]
[1744643685897,0.015838,84469.0,84458.0,0.248643]
[1744643686016,0.015838,84469.0,84461.0,0.011839]
[1744643686222,0.236801,84459.0,84455.0,0.01184]
[1744643686449,0.011839,84460.0,84453.0,0.01184]
[1744643686659,0.01184,84458.0,84455.0,0.01184]
[1744643686892,0.01184,84456.0,84448.0,0.061641]
[1744643687091,0.01184,84458.0,84456.0,0.236809]
[1744643687294,0.01184,84458.0,84454.0,0.01184]
[1744643687523,0.001,84465.0,84460.0,0.011839]
[1744643687745,0.237784,84465.0,84462.0,0.24863]
[1744643688578,0.236778,84467.0,84464.0,0.011839]
[1744643688750,0.002,84465.0,84464.0,0.011839]
[1744643688955,0.248627,84464.0,84460.0,0.011839]
[1744643689153,0.248626,84464.0,84460.0,0.011839]
[1744643689352,0.01184,84459.0,84455.0,0.001]
[1744643689551,0.236802,84459.0,84455.0,0.001]
[1744643689748,0.236802,84459.0,84456.0,0.248646]
[1744643689953,0.248637,84461.0,84456.0,0.248646]
[1744643690509,0.521463,84483.0,84450.0,0.10755579]
[1744643690510,0.011838,84467.0,84463.0,0.011839]
[1744643690711,0.248618,84467.0,84463.0,0.248626]
[1744643690870,0.248623,84466.0,84463.0,0.248629]
[1744643691276,0.34936576,84471.0,84470.0,0.23677]
[1744643691474,0.011836,84488.0,84471.0,0.236767]
[1744643691681,0.236743,84480.0,84471.0,0.236767]
[1744643692090,0.02174675,84479.0,84471.0,0.236767]
[1744643692293,0.02174675,84479.0,84471.0,0.332667]
[1744643692507,0.02174675,84488.0,84471.0,0.332667]
[1744643692712,0.011836,84487.0,84471.0,0.332667]
[1744643692920,0.248559,84487.0,84471.0,0.332667]
[1744643693152,0.25846675,84488.0,84471.0,0.332667]
[1744643693354,0.236731,84485.0,84471.0,0.332667]
[1744643693562,0.02174675,84484.0,84471.0,0.332667]
[1744643693774,0.00346192,84472.0,84471.0,0.332667]
[1744643694523,0.02520867,84472.0,84471.0,0.332667]
[1744643694948,0.00346192,84472.0,84471.0,0.332667]
[1744643695159,0.00246192,84472.0,84471.0,0.332667]
[1744643697246,0.00246192,84472.0,84471.0,0.45350854]
[1744643698519,0.00246192,84472.0,84471.0,0.79350854]
[1744643699112,0.00246192,84472.0,84471.0,0.79650854]
[1744643699533,0.00246192,84472.0,84471.0,0.79350854]
[1744643699948,0.00246192,84472.0,84471.0,0.79550854]
[1744643700151,0.00046192,84472.0,84471.0,0.79550854]
[1744643700568,0.00046192,84472.0,84471.0,0.0989]
[1744643700712,0.00046192,84472.0,84471.0,0.0979]
[1744643701134,0.00146192,84472.0,84471.0,0.0999]
[1744643701445,0.16880035,84472.0,84471.0,0.002]
[1744643701653,0.236823,84451.0,84450.0,0.097]
[1744643701892,0.00246192,84472.0,84450.0,0.06159771]
[1744643702066,0.00246192,84472.0,84471.0,0.238767]
[1744643702284,0.12330346,84472.0,84471.0,0.002]
[1744643702717,0.01184,84459.0,84453.0,0.01184]
[1744643702885,0.236813,84455.0,84452.0,0.236819]
[1744643703091,0.01184,84456.0,84450.0,0.051]
[1744643703092,0.236823,84451.0,84450.0,0.051]
[1744643703312,0.248618,84467.0,84462.0,0.011839]
[1744643703589,0.01184,84458.0,84455.0,0.01184]
[1744643703786,0.01184,84458.0,84453.0,0.248657]
[1744643703935,0.01184,84458.0,84450.0,0.051]
[1744643703936,0.01184,84453.0,84450.0,0.051]
[1744643704135,0.01184,84454.0,84452.0,0.001]
[1744643704350,0.01184,84455.0,84451.0,0.011841]
[1744643704552,0.01184,84455.0,84451.0,0.248663]
[1744643704749,0.03358717,84454.0,84451.0,0.248663]
[1744643704930,0.02174717,84454.0,84452.0,0.236818]
[1744643705152,0.23682,84452.0,84450.0,0.05]
[1744643705530,0.02174717,84451.0,84450.0,0.05]
[1744643706941,0.02274717,84451.0,84450.0,0.051]
[1744643707342,0.02274717,84451.0,84450.0,0.052]
[1744643707977,0.02274717,84451.0,84450.0,0.051]
[1744643708176,0.02274717,84451.0,84450.0,0.052]
[1744643708524,0.55704153,84451.0,84450.0,0.03822758]
[1744643708768,0.56509226,84451.0,84450.0,5.8e-07]
[1744643709561,0.01454085,84439.0,84437.0,0.0004237]
[1744643709771,0.65094815,84438.0,84437.0,0.0004237]
[1744643709965,0.67269532,84438.0,84437.0,0.0004237]
[1744643710389,0.50649532,84438.0,84437.0,0.0004237]
[1744643710613,0.68359226,84438.0,84437.0,0.0004237]
[1744643710834,0.69590403,84438.0,84437.0,0.0004237]
[1744643711265,0.70490403,84438.0,84437.0,0.0004237]
[1744643712421,0.70890403,84438.0,84437.0,0.0004237]
[1744643713535,0.25141485,84433.0,84432.0,2e-07]
[1744643713712,0.25142885,84428.0,84427.0,8e-07]
[1744643713898,0.37227039,84428.0,84427.0,8e-07]
[1744643714109,0.4049145,84428.0,84427.0,8e-07]
[1744643714892,0.4119145,84428.0,84427.0,8e-07]
[1744643715168,0.7519145,84428.0,84427.0,8e-07]
[1744643715379,0.59147385,84412.0,84411.0,1.9e-07]
[1744643715609,0.236955,84404.0,84370.0,0.0457]
[1744643715828,0.011847,84406.0,84370.0,0.0457]
[1744643715829,0.248798,84406.0,84398.0,0.236971]
[1744643715992,0.37233739,84404.0,84370.0,0.0457]
[1744643716211,0.37233739,84404.0,84391.0,0.011849]
[1744643716343,0.37233739,84404.0,84379.0,0.011851]
[1744643716344,0.37233739,84404.0,84383.0,0.01185]
[1744643716544,0.84289228,84404.0,84381.0,0.0025024]
[1744643716827,0.2358357,84382.0,84381.0,0.0025024]
[1744643716975,0.35667724,84382.0,84381.0,0.0025024]
[1744643717465,0.7060423,84382.0,84381.0,0.0025024]
[1744643717838,0.72058315,84382.0,84381.0,0.0025024]
[1744643718052,0.71782107,84382.0,84381.0,0.0025024]
[1744643718631,0.7090423,84382.0,84381.0,0.0025024]
[1744643718831,0.72358315,84382.0,84381.0,0.0025024]
[1744643719437,0.72215203,84382.0,84381.0,0.0025024]
[1744643719908,0.72815203,84382.0,84381.0,0.0025024]
[1744643720659,0.36424612,84382.0,84381.0,0.0025024]
[1744643722702,0.14438239,84382.0,84381.0,0.0025024]
[1744643723244,0.12984154,84382.0,84381.0,0.0025024]
[1744643723455,0.12974154,84382.0,84381.0,0.0025024]
[1744643724267,0.12674154,84382.0,84381.0,0.0025024]
[1744643724757,0.4811066,84382.0,84381.0,0.0025024]
[1744643725976,0.4761066,84382.0,84381.0,0.0025024]
[1744643726316,0.4791066,84382.0,84381.0,0.0025024]
[1744643728014,0.35836506,84382.0,84381.0,0.0475024]
[1744643728155,0.009,84382.0,84381.0,0.0475024]
[1744643728379,0.009,84382.0,84381.0,0.09647235]
[1744643728695,0.009,84382.0,84381.0,0.0941024]
[1744643729004,0.006,84382.0,84381.0,0.0941024]
[1744643729146,0.006,84382.0,84381.0,0.3311224]
[1744643729344,0.008,84382.0,84381.0,0.3311224]
[1744643729840,0.008,84382.0,84381.0,0.34279347]
[1744643730179,0.002,84382.0,84381.0,0.34279347]
[1744643730402,0.002,84382.0,84381.0,0.46363501]
[1744643730654,0.34936506,84403.0,84381.0,0.46363501]
[1744643730655,0.34936506,84403.0,84402.0,0.236961]
[1744643730772,0.00046135,84404.0,84402.0,0.236961]
[1744643731180,0.011848,84399.0,84394.0,0.011849]
[1744643731383,0.01185,84385.0,84381.0,0.27305347]
[1744643731624,0.001,84382.0,84381.0,0.2613824]
[1744643731833,0.001,84382.0,84381.0,0.0501024]
[1744643732026,0.00714243,84382.0,84381.0,0.0491024]
[1744643732266,0.01185,84386.0,84382.0,0.237015]
[1744643732460,0.00046135,84404.0,84389.0,0.011849]
[1744643732461,0.011848,84400.0,84389.0,0.011849]
[1744643732619,0.011848,84400.0,84392.0,0.248835]
[1744643732620,0.248827,84396.0,84392.0,0.248835]
[1744643732835,0.34936506,84403.0,84393.0,0.011849]
[1744643733032,0.011848,84399.0,84394.0,0.248832]
[1744643733236,0.011848,84399.0,84381.0,0.0491024]
[1744643733237,0.011848,84397.0,84387.0,0.01185]
[1744643733511,0.003,84399.0,84387.0,0.01185]
[1744643733512,0.003,84399.0,84398.0,0.236972]
[1744643734069,0.00046135,84404.0,84403.0,0.236958]
[1744643734465,0.011846,84413.0,84408.0,0.248788]
[1744643734671,0.0008452,84416.0,84414.0,0.236927]
[1744643735850,0.0008452,84416.0,84415.0,0.0498]
[1744643736137,0.0008452,84416.0,84415.0,0.05216879]
[1744643736346,0.236843,84444.0,84439.0,0.011842]
[1744643736547,0.34936506,84444.0,84441.0,0.236851]
[1744643736762,0.236849,84442.0,84439.0,0.011842]
[1744643736912,0.248693,84441.0,84437.0,0.248704]
[1744643737313,0.011843,84437.0,84434.0,0.248713]
[1744643737523,0.011842,84439.0,84435.0,0.24871]
[1744643737715,0.36920706,84444.0,84440.0,0.248695]
[1744643737970,0.36120706,84444.0,84441.0,0.248693]
[1744643738136,0.34936506,84444.0,84443.0,0.0491]
[1744643738333,0.34936506,84460.0,84453.0,0.01184]
[1744643738664,0.01184,84458.0,84454.0,0.01184]
[1744643738832,0.36948854,84457.0,84453.0,0.248656]
[1744643739032,0.36948854,84457.0,84448.0,0.011841]
[1744643739033,0.01184,84454.0,84448.0,0.248671]
[1744643739365,0.011841,84452.0,84448.0,0.011841]
[1744643739571,0.0008452,84450.0,84448.0,0.248672]
[1744643740139,0.0008452,84450.0,84448.0,0.23683]
[1744643740738,0.0058452,84450.0,84448.0,0.23683]
[1744643741300,0.0078452,84450.0,84448.0,0.23683]
[1744643742061,0.0028452,84450.0,84448.0,0.23683]
[1744643742256,0.0028452,84450.0,84449.0,0.00236803]
[1744643742662,0.0008452,84450.0,84449.0,0.00236803]
[1744643742847,0.0018452,84450.0,84448.0,0.23683]
[1744643743046,0.0018452,84450.0,84448.0,0.35767154]
[1744643743606,0.0048452,84450.0,84449.0,0.12084154]
[1744643743765,0.0018452,84450.0,84449.0,0.12320936]
[1744643743961,0.0008456,84467.0,84466.0,0.236781]
[1744643744584,0.0008456,84467.0,84466.0,0.35762254]
[1744643744992,0.0008456,84467.0,84466.0,0.45122254]
[1744643745193,0.0008456,84467.0,84466.0,0.45136123]
[1744643746274,0.0028456,84469.0,84468.0,0.236776]
[1744643746428,0.236674,84505.0,84499.0,0.236689]
[1744643746605,0.236678,84503.0,84498.0,0.236691]
[1744643746792,0.011834,84502.0,84498.0,0.236691]
[1744643746992,0.011834,84502.0,84494.0,0.248537]
[1744643746993,0.0126784,84501.0,84492.0,0.011835]
[1744643747293,0.236723,84487.0,84482.0,0.414731]
[1744643747506,0.248559,84487.0,84483.0,0.011836]
[1744643747718,0.011836,84487.0,84483.0,0.24870669]
[1744643747936,0.011836,84487.0,84484.0,0.011836]
[1744643748148,0.248564,84486.0,84483.0,0.00013869]
[1744643748343,0.23673,84485.0,84483.0,0.00013869]
[1744643748802,0.00703134,84484.0,84483.0,0.00013869]
[1744643749210,0.001,84487.0,84484.0,0.011836]
[1744643749390,0.001,84487.0,84486.0,0.236725]
[1744643749600,0.59788806,84499.0,84497.0,0.236693]
[1744643749601,0.34936506,84499.0,84497.0,0.236693]
[1744643749777,0.011834,84498.0,84493.0,0.011835]
[1744643749979,0.00474992,84498.0,84496.0,0.236696]
[1744643750231,0.24144192,84498.0,84495.0,0.248533]
[1744643750431,0.24144192,84498.0,84495.0,0.011835]
[1744643750585,0.00474992,84498.0,84496.0,0.236695]
[1744643750792,0.00474992,84498.0,84486.0,0.237724]
[1744643751015,0.34936506,84499.0,84488.0,0.011836]
[1744643751016,0.248545,84492.0,84488.0,0.011836]
[1744643751231,0.248545,84492.0,84488.0,0.248553]
[1744643751414,0.00472751,84491.0,84488.0,0.248553]
[1744643751747,0.00472751,84491.0,84471.0,0.00906129]
[1744643751748,0.011836,84487.0,84483.0,0.23687169]
[1744643752040,0.248553,84489.0,84486.0,0.248561]
[1744643752217,0.248553,84489.0,84483.0,0.00013869]
[1744643752218,0.236731,84484.0,84483.0,0.00013869]
[1744643752615,0.24378081,84484.0,84483.0,0.00013869]
[1744643753027,0.00704981,84484.0,84483.0,0.00013869]
[1744643753232,0.011836,84486.0,84483.0,0.24870569]
[1744643753413,0.248556,84488.0,84483.0,0.24870569]
[1744643753609,0.00705666,84485.0,84484.0,0.236731]
[1744643753812,0.236731,84484.0,84483.0,0.00013869]
[1744643754127,0.24478081,84484.0,84483.0,0.00013869]
[1744643754331,0.00804981,84484.0,84483.0,0.00113869]
[1744643754509,0.00804981,84484.0,84483.0,0.23787269]
[1744643754852,0.00704981,84484.0,84483.0,0.23787269]
[1744643755304,0.248545,84492.0,84487.0,0.011836]
[1744643755600,0.2375294,84501.0,84498.0,0.236691]
[1744643755601,0.0008444,84501.0,84498.0,0.236691]
[1744643756942,0.0008444,84501.0,84499.0,0.236689]
[1744643757064,0.006,84499.0,84498.0,0.236691]
[1744643757265,0.008,84499.0,84498.0,0.236691]
[1744643757463,0.008,84499.0,84498.0,0.45553254]
[1744643759021,0.002,84499.0,84498.0,0.45553254]
[1744643759217,0.0008444,84501.0,84499.0,0.236689]
[1744643760009,0.0008444,84501.0,84499.0,0.35753054]
[1744643760456,8e-07,84501.0,84500.0,0.236686]
[1744643760576,4e-07,84506.0,84505.0,0.236672]
[1744643760778,4e-07,84506.0,84505.0,0.83123835]
[1744643761090,0.0008444,84533.0,84525.0,0.236616]
[1744643761310,0.0008444,84533.0,84525.0,0.62249754]
[1744643761522,0.0008444,84533.0,84525.0,1.00072235]
[1744643761882,0.0008444,84533.0,84525.0,0.96249754]
[1744643762045,0.236604,84530.0,84525.0,0.335616]
[1744643762241,0.01183,84528.0,84525.0,0.0496]
[1744643762443,0.0008444,84533.0,84524.0,0.236617]
[1744643762444,0.00636821,84526.0,84524.0,0.236617]
[1744643762643,0.00130632,84526.0,84523.0,0.248452]
[1744643762809,0.00130632,84526.0,84525.0,0.004]
[1744643763039,0.00220715,84526.0,84525.0,0.004]
[1744643763211,0.00220715,84526.0,84524.0,0.236618]
[1744643763424,0.00120715,84526.0,84524.0,0.238618]
[1744643763620,0.00220715,84526.0,84524.0,0.238618]
[1744643763826,0.00120715,84526.0,84524.0,0.238618]
[1744643764027,0.00120715,84526.0,84524.0,0.236618]
[1744643764221,0.00120715,84526.0,84525.0,0.001]
[1744643764828,0.00120715,84526.0,84525.0,0.01265474]
[1744643765030,0.00120715,84526.0,84525.0,1.001]
[1744643765226,0.00320715,84526.0,84525.0,1.001]
[1744643765479,0.00320715,84526.0,84525.0,1.0]
[1744643765910,0.00320715,84526.0,84525.0,1.01177632]
[1744643766601,0.00320715,84526.0,84525.0,1.01277632]
[1744643768976,0.00320715,84526.0,84525.0,1.001]
[1744643769341,0.00832446,84526.0,84525.0,1.001]
[1744643770519,0.00320715,84526.0,84525.0,1.237616]
[1744643771134,0.00320715,84526.0,84525.0,1.001]
[1744643771382,0.36066169,84526.0,84525.0,1.001]
[1744643771588,0.71002675,84526.0,84525.0,1.001]
[1744643771722,0.78761345,84526.0,84525.0,1.001]
[1744643771924,0.7906394,84526.0,84525.0,1.001]
[1744643772121,0.7906394,84526.0,84489.0,0.177795]
[1744643772122,0.236714,84490.0,84489.0,0.16596]
[1744643772428,0.011833,84507.0,84494.0,0.011835]
[1744643772634,0.011833,84505.0,84500.0,0.011834]
[1744643772968,0.248503,84506.0,84501.0,0.248517]
[1744643773170,0.236641,84516.0,84501.0,0.248517]
[1744643773326,0.011832,84516.0,84508.0,0.011833]
[1744643773530,0.011831,84519.0,84502.0,0.011834]
[1744643773531,0.011832,84513.0,84502.0,0.011834]
[1744643773915,0.011835,84492.0,84489.0,0.001]
[1744643774314,0.011834,84498.0,84489.0,0.001]
[1744643774315,0.32116924,84530.0,84504.0,0.236675]
[1744643774519,0.00074523,84526.0,84504.0,0.236675]
[1744643774740,0.011831,84517.0,84504.0,0.236675]
[1744643774949,0.011835,84493.0,84486.0,0.0489]
[1744643775261,0.011835,84493.0,84486.0,0.236724]
[1744643775262,0.011835,84491.0,84486.0,0.236724]
[1744643775385,0.24855,84490.0,84484.0,0.248564]
[1744643775584,0.011836,84487.0,84483.0,0.248569]
[1744643775804,0.236703,84495.0,84487.0,0.248557]
[1744643776022,0.011833,84507.0,84503.0,0.236677]
[1744643776231,0.248502,84506.0,84502.0,0.011834]
[1744643776604,0.011834,84500.0,84491.0,0.011835]
[1744643776818,0.12130346,84506.0,84473.0,0.647787]
[1744643776819,0.12130346,84506.0,84496.0,0.011834]
[1744643777019,0.011834,84499.0,84495.0,0.011835]
[1744643777222,0.011834,84501.0,84496.0,0.011834]
[1744643777408,0.011834,84500.0,84496.0,0.011834]
[1744643777603,0.011834,84500.0,84490.0,0.011835]
[1744643777604,0.00046192,84506.0,84499.0,0.011834]
[1744643777839,0.00046192,84506.0,84504.0,0.236675]
[1744643778916,0.00046192,84506.0,84504.0,0.236673]